[Event "Titled Tuesday Blitz December 27 Late 2022"]
[White "Beerdsen, Thomas"]
[Black "Zakhartsov, Vladimir"]
[WhiteFideId "1030108"]
[BlackFideId "4145097"]
[WhiteElo "2507"]
[BlackElo "2552"]
[Result "0-1"]
[Round "04"]
[TimeControl "180+2"]
[Date "2022.12.27"]
[WhiteClock "0:00:10"]
[BlackClock "0:00:11"]

1. e4 {[%clk 0:03:00]}  c5 {[%clk 0:02:57]} 2. Nf3 {[%clk 0:03:01]}  Nc6 {[%clk 0:02:56]} 3. Bc4 {[%clk 0:03:01]}  e6 {[%clk 0:02:55]} 4. O-O {[%clk 0:03:01]}  d5 {[%clk 0:02:53]} 5. Bb5 {[%clk 0:03:01]}  dxe4 {[%clk 0:02:44]} 6. Ne5 {[%clk 0:03:02]}  Qc7 {[%clk 0:02:43]} 7. Nxc6 {[%clk 0:03:01]}  bxc6 {[%clk 0:02:43]} 8. Bc4 {[%clk 0:03:02]}  Bd6 {[%clk 0:02:43]} 9. Kh1 {[%clk 0:03:02]}  Nf6 {[%clk 0:02:34]} 10. Nc3 {[%clk 0:03:02]}  Bxh2 {[%clk 0:02:16]} 11. g3 {[%clk 0:02:46]}  Bxg3 {[%clk 0:02:16]} 12. fxg3 {[%clk 0:02:47]}  Qxg3 {[%clk 0:02:15]} 13. Qe2 {[%clk 0:02:46]}  e5 {[%clk 0:02:02]} 14. Qh2 {[%clk 0:02:38]}  Qxh2+ {[%clk 0:01:36]} 15. Kxh2 {[%clk 0:02:39]}  Ng4+ {[%clk 0:01:33]} 16. Kg1 {[%clk 0:02:33]}  f5 {[%clk 0:01:33]} 17. d3 {[%clk 0:02:26]}  e3 {[%clk 0:01:31]} 18. Re1 {[%clk 0:01:59]}  f4 {[%clk 0:01:28]} 19. Ne4 {[%clk 0:02:00]}  h5 {[%clk 0:01:23]} 20. Kg2 {[%clk 0:01:49]}  h4 {[%clk 0:00:56]} 21. Kf3 {[%clk 0:01:42]}  h3 {[%clk 0:00:47]} 22. Nd6+ {[%clk 0:01:40]}  Kd7 {[%clk 0:00:41]} 23. Nxc8 {[%clk 0:01:38]}  Nh2+ {[%clk 0:00:41]} 24. Ke4 {[%clk 0:01:38]}  Raxc8 {[%clk 0:00:40]} 25. b4 {[%clk 0:01:17]}  Ng4 {[%clk 0:00:38]} 26. bxc5 {[%clk 0:01:06]}  h2 {[%clk 0:00:33]} 27. Bb2 {[%clk 0:01:06]}  h1=Q+ {[%clk 0:00:26]} 28. Rxh1 {[%clk 0:01:05]}  Rxh1 {[%clk 0:00:26]} 29. Rxh1 {[%clk 0:01:06]}  Nf2+ {[%clk 0:00:27]} 30. Kxe5 {[%clk 0:01:07]}  Nxh1 {[%clk 0:00:27]} 31. Be6+ {[%clk 0:01:05]}  Kc7 {[%clk 0:00:18]} 32. Bxc8 {[%clk 0:00:48]}  f3 {[%clk 0:00:14]} 33. Bh3 {[%clk 0:00:17]}  e2 {[%clk 0:00:12]} 34. Bg4 {[%clk 0:00:09]}  e1=Q+ {[%clk 0:00:11]} 35. Kf4 {[%clk 0:00:10]}  f2 {[%clk 0:00:11]} 0-1


[Site "https://www.chess.com"]

[Event "Titled Tuesday Blitz December 27 Late 2022"]
[White "Bjelobrk, Igor"]
[Black "Bochnicka, Vladimir"]
[WhiteFideId "4300726"]
[BlackFideId "14943450"]
[WhiteElo "2403"]
[BlackElo "2327"]
[Result "1-0"]
[Round "04"]
[TimeControl "180+2"]
[Date "2022.12.27"]
[WhiteClock "0:00:25"]
[BlackClock "0:00:15"]

1. Nf3 {[%clk 0:02:59]}  c5 {[%clk 0:02:57]} 2. g3 {[%clk 0:02:57]}  Nc6 {[%clk 0:02:57]} 3. c4 {[%clk 0:02:54]}  g6 {[%clk 0:02:58]} 4. Nc3 {[%clk 0:02:53]}  Bg7 {[%clk 0:02:58]} 5. Bg2 {[%clk 0:02:54]}  e5 {[%clk 0:02:56]} 6. d3 {[%clk 0:02:49]}  Nge7 {[%clk 0:02:54]} 7. h4 {[%clk 0:02:48]}  h5 {[%clk 0:02:54]} 8. Ng5 {[%clk 0:02:40]}  O-O {[%clk 0:02:43]} 9. a3 {[%clk 0:02:38]}  d6 {[%clk 0:02:38]} 10. Rb1 {[%clk 0:02:32]}  a5 {[%clk 0:02:37]} 11. Bd2 {[%clk 0:02:25]}  Rb8 {[%clk 0:02:35]} 12. O-O {[%clk 0:02:23]}  f6 {[%clk 0:02:28]} 13. Nge4 {[%clk 0:02:20]}  Be6 {[%clk 0:02:26]} 14. Nb5 {[%clk 0:02:14]}  Nc8 {[%clk 0:02:05]} 15. b4 {[%clk 0:02:12]}  axb4 {[%clk 0:01:50]} 16. axb4 {[%clk 0:02:11]}  Nxb4 {[%clk 0:01:48]} 17. Bxb4 {[%clk 0:02:10]}  cxb4 {[%clk 0:01:49]} 18. Rxb4 {[%clk 0:02:11]}  d5 {[%clk 0:01:43]} 19. Nc5 {[%clk 0:02:01]}  Bf7 {[%clk 0:01:37]} 20. cxd5 {[%clk 0:02:00]}  Bxd5 {[%clk 0:01:18]} 21. Bxd5+ {[%clk 0:01:59]}  Qxd5 {[%clk 0:01:19]} 22. Qb3 {[%clk 0:01:58]}  Qxb3 {[%clk 0:01:19]} 23. Rxb3 {[%clk 0:01:59]}  Rd8 {[%clk 0:01:11]} 24. Rfb1 {[%clk 0:01:46]}  Kf7 {[%clk 0:01:09]} 25. Nc7 {[%clk 0:01:25]}  b6 {[%clk 0:01:06]} 26. N5a6 {[%clk 0:01:21]}  Rb7 {[%clk 0:01:03]} 27. Nb5 {[%clk 0:01:03]}  Bf8 {[%clk 0:00:54]} 28. Rc1 {[%clk 0:00:59]}  Na7 {[%clk 0:00:47]} 29. Nxa7 {[%clk 0:00:56]}  Rxa7 {[%clk 0:00:48]} 30. Rxb6 {[%clk 0:00:57]}  Rd6 {[%clk 0:00:45]} 31. Rcc6 {[%clk 0:00:46]}  Rxc6 {[%clk 0:00:42]} 32. Rxc6 {[%clk 0:00:47]}  Rb7 {[%clk 0:00:40]} 33. Rc7+ {[%clk 0:00:47]}  Rxc7 {[%clk 0:00:40]} 34. Nxc7 {[%clk 0:00:48]}  Bd6 {[%clk 0:00:39]} 35. Nb5 {[%clk 0:00:47]}  Bc5 {[%clk 0:00:38]} 36. Kg2 {[%clk 0:00:46]}  Ke6 {[%clk 0:00:39]} 37. e4 {[%clk 0:00:43]}  f5 {[%clk 0:00:36]} 38. f3 {[%clk 0:00:41]}  fxe4 {[%clk 0:00:35]} 39. dxe4 {[%clk 0:00:37]}  Kf6 {[%clk 0:00:34]} 40. g4 {[%clk 0:00:37]}  Be3 {[%clk 0:00:25]} 41. Nc3 {[%clk 0:00:37]}  Bd2 {[%clk 0:00:24]} 42. Nd5+ {[%clk 0:00:36]}  Ke6 {[%clk 0:00:23]} 43. Kf2 {[%clk 0:00:35]}  Bh6 {[%clk 0:00:20]} 44. g5 {[%clk 0:00:33]}  Bf8 {[%clk 0:00:20]} 45. f4 {[%clk 0:00:33]}  exf4 {[%clk 0:00:20]} 46. Nxf4+ {[%clk 0:00:33]}  Kf7 {[%clk 0:00:18]} 47. e5 {[%clk 0:00:33]}  Bc5+ {[%clk 0:00:18]} 48. Kf3 {[%clk 0:00:33]}  Bd4 {[%clk 0:00:17]} 49. e6+ {[%clk 0:00:26]}  Ke7 {[%clk 0:00:16]} 50. Nxg6+ {[%clk 0:00:26]}  Kxe6 {[%clk 0:00:16]} 51. Nf4+ {[%clk 0:00:26]}  Kf5 {[%clk 0:00:16]} 52. Nxh5 {[%clk 0:00:27]}  Bf2 {[%clk 0:00:16]} 53. Kxf2 {[%clk 0:00:26]}  Kg4 {[%clk 0:00:15]} 54. g6 {[%clk 0:00:25]} 1-0


[Site "https://www.chess.com"]

[Event "Titled Tuesday Blitz December 27 Late 2022"]
[White "Boros, Denes"]
[Black "Marjanovic, Annamaria"]
[WhiteFideId "722340"]
[BlackFideId "750930"]
[WhiteElo "2406"]
[BlackElo "2273"]
[Result "1-0"]
[Round "04"]
[TimeControl "180+2"]
[Date "2022.12.27"]
[WhiteClock "0:01:38"]
[BlackClock "0:00:39"]

1. Nf3 {[%clk 0:03:00]}  d5 {[%clk 0:02:59]} 2. d4 {[%clk 0:02:58]}  Nf6 {[%clk 0:02:58]} 3. Nc3 {[%clk 0:02:59]}  e6 {[%clk 0:02:52]} 4. Bg5 {[%clk 0:02:59]}  Be7 {[%clk 0:02:52]} 5. Bxf6 {[%clk 0:02:58]}  Bxf6 {[%clk 0:02:52]} 6. e4 {[%clk 0:02:59]}  dxe4 {[%clk 0:02:50]} 7. Nxe4 {[%clk 0:03:00]}  Be7 {[%clk 0:02:48]} 8. Qd3 {[%clk 0:02:59]}  Nd7 {[%clk 0:02:47]} 9. O-O-O {[%clk 0:02:59]}  Nf6 {[%clk 0:02:47]} 10. h4 {[%clk 0:02:59]}  Nxe4 {[%clk 0:02:46]} 11. Qxe4 {[%clk 0:03:00]}  Qd5 {[%clk 0:02:45]} 12. Bd3 {[%clk 0:02:57]}  Qxa2 {[%clk 0:02:34]} 13. c3 {[%clk 0:02:52]}  Qd5 {[%clk 0:02:29]} 14. Qf4 {[%clk 0:02:51]}  Bd6 {[%clk 0:02:24]} 15. Qg4 {[%clk 0:02:40]}  g6 {[%clk 0:02:21]} 16. h5 {[%clk 0:02:38]}  Rg8 {[%clk 0:01:57]} 17. hxg6 {[%clk 0:02:26]}  hxg6 {[%clk 0:01:56]} 18. c4 {[%clk 0:02:18]}  Qa5 {[%clk 0:01:49]} 19. c5 {[%clk 0:02:18]}  Qa1+ {[%clk 0:01:37]} 20. Kc2 {[%clk 0:02:14]}  Qa4+ {[%clk 0:01:37]} 21. Kb1 {[%clk 0:02:14]}  Bxc5 {[%clk 0:01:35]} 22. Qg5 {[%clk 0:02:06]}  Be7 {[%clk 0:01:15]} 23. Bb5+ {[%clk 0:02:03]}  Bd7 {[%clk 0:01:03]} 24. Bxa4 {[%clk 0:01:59]}  Bxg5 {[%clk 0:01:02]} 25. Bxd7+ {[%clk 0:01:59]}  Kxd7 {[%clk 0:01:02]} 26. Nxg5 {[%clk 0:02:00]}  Rg7 {[%clk 0:01:00]} 27. d5 {[%clk 0:01:54]}  e5 {[%clk 0:00:51]} 28. Rhe1 {[%clk 0:01:51]}  Re8 {[%clk 0:00:48]} 29. Ne4 {[%clk 0:01:51]}  Kd8 {[%clk 0:00:42]} 30. d6 {[%clk 0:01:46]}  c6 {[%clk 0:00:41]} 31. Nc5 {[%clk 0:01:38]}  f5 {[%clk 0:00:40]} 32. d7 {[%clk 0:01:38]}  Ree7 {[%clk 0:00:39]} 33. Nxb7+ {[%clk 0:01:38]} 1-0


[Site "https://www.chess.com"]

[Event "Titled Tuesday Blitz December 27 Late 2022"]
[White "Deac, Bogdan-Daniel"]
[Black "Avila Pavas, Santiago"]
[WhiteFideId "1226380"]
[BlackFideId "4437128"]
[WhiteElo "2700"]
[BlackElo "2522"]
[Result "1-0"]
[Round "04"]
[TimeControl "180+2"]
[Date "2022.12.27"]
[WhiteClock "0:00:06"]
[BlackClock "0:00:05"]

1. d4 {[%clk 0:03:00]}  Nf6 {[%clk 0:03:00]} 2. Nf3 {[%clk 0:02:59]}  e6 {[%clk 0:03:00]} 3. Bf4 {[%clk 0:02:59]}  d5 {[%clk 0:02:59]} 4. e3 {[%clk 0:02:59]}  Bd6 {[%clk 0:03:00]} 5. Bg3 {[%clk 0:02:59]}  c5 {[%clk 0:02:59]} 6. c4 {[%clk 0:02:57]}  cxd4 {[%clk 0:02:55]} 7. Nxd4 {[%clk 0:02:56]}  Bb4+ {[%clk 0:02:49]} 8. Nc3 {[%clk 0:02:55]}  O-O {[%clk 0:02:49]} 9. Qb3 {[%clk 0:02:44]}  Qa5 {[%clk 0:02:37]} 10. Rc1 {[%clk 0:02:42]}  Ne4 {[%clk 0:02:25]} 11. cxd5 {[%clk 0:02:40]}  exd5 {[%clk 0:02:24]} 12. Bd3 {[%clk 0:02:21]}  Nc6 {[%clk 0:02:21]} 13. Ne2 {[%clk 0:01:40]}  Bf5 {[%clk 0:02:09]} 14. Bxe4 {[%clk 0:01:38]}  dxe4 {[%clk 0:01:55]} 15. a3 {[%clk 0:01:34]}  Bxc3+ {[%clk 0:01:51]} 16. Nxc3 {[%clk 0:01:32]}  Be6 {[%clk 0:01:41]} 17. Qb5 {[%clk 0:01:27]}  Rad8 {[%clk 0:00:55]} 18. Qxb7 {[%clk 0:01:17]}  Rc8 {[%clk 0:00:55]} 19. O-O {[%clk 0:01:13]}  Bc4 {[%clk 0:00:53]} 20. Rfd1 {[%clk 0:01:12]}  Bd3 {[%clk 0:00:54]} 21. Qb3 {[%clk 0:00:38]}  Rfd8 {[%clk 0:00:49]} 22. Qa4 {[%clk 0:00:37]}  Qxa4 {[%clk 0:00:43]} 23. Nxa4 {[%clk 0:00:37]}  Na5 {[%clk 0:00:44]} 24. Nc5 {[%clk 0:00:26]}  Nc4 {[%clk 0:00:38]} 25. b4 {[%clk 0:00:21]}  Nxa3 {[%clk 0:00:36]} 26. f3 {[%clk 0:00:21]}  f5 {[%clk 0:00:36]} 27. Bh4 {[%clk 0:00:19]}  Rd5 {[%clk 0:00:30]} 28. fxe4 {[%clk 0:00:15]}  fxe4 {[%clk 0:00:31]} 29. Ra1 {[%clk 0:00:13]}  Nc4 {[%clk 0:00:29]} 30. Rxa7 {[%clk 0:00:09]}  Nxe3 {[%clk 0:00:29]} 31. Rda1 {[%clk 0:00:10]}  Rf8 {[%clk 0:00:20]} 32. Ne6 {[%clk 0:00:08]}  Rf1+ {[%clk 0:00:06]} 33. Rxf1 {[%clk 0:00:07]}  Bxf1 {[%clk 0:00:07]} 34. Rxg7+ {[%clk 0:00:07]}  Kh8 {[%clk 0:00:07]} 35. Bf6 {[%clk 0:00:06]}  Rf5 {[%clk 0:00:07]} 36. Rf7+ {[%clk 0:00:05]}  Rxf6 {[%clk 0:00:05]} 37. Rxf6 {[%clk 0:00:06]} 1-0


[Site "https://www.chess.com"]

[Event "Titled Tuesday Blitz December 27 Late 2022"]
[White "Djokic, Mihailo"]
[Black "Huber, Benedikt"]
[WhiteFideId "976440"]
[BlackFideId "12923583"]
[WhiteElo "2192"]
[BlackElo "2272"]
[Result "1-0"]
[Round "04"]
[TimeControl "180+2"]
[Date "2022.12.27"]
[WhiteClock "0:02:47"]
[BlackClock "0:02:06"]

1. e4 {[%clk 0:03:00]}  c5 {[%clk 0:02:59]} 2. Nf3 {[%clk 0:02:59]}  e6 {[%clk 0:02:59]} 3. d4 {[%clk 0:03:00]}  cxd4 {[%clk 0:03:00]} 4. Nxd4 {[%clk 0:03:01]}  Nc6 {[%clk 0:03:00]} 5. Nc3 {[%clk 0:03:01]}  Qc7 {[%clk 0:03:01]} 6. Be2 {[%clk 0:03:01]}  Nf6 {[%clk 0:03:00]} 7. O-O {[%clk 0:03:01]}  Be7 {[%clk 0:02:59]} 8. Be3 {[%clk 0:02:59]}  O-O {[%clk 0:02:56]} 9. f4 {[%clk 0:02:59]}  d6 {[%clk 0:02:56]} 10. Kh1 {[%clk 0:02:59]}  a6 {[%clk 0:02:46]} 11. Qe1 {[%clk 0:02:57]}  Nxd4 {[%clk 0:02:40]} 12. Bxd4 {[%clk 0:02:58]}  e5 {[%clk 0:02:40]} 13. fxe5 {[%clk 0:02:56]}  dxe5 {[%clk 0:02:41]} 14. Qg3 {[%clk 0:02:56]}  Qa5 {[%clk 0:02:10]} 15. Bxe5 {[%clk 0:02:50]}  Kh8 {[%clk 0:02:06]} 16. Nd5 {[%clk 0:02:47]} 1-0


[Site "https://www.chess.com"]

[Event "Titled Tuesday Blitz December 27 Late 2022"]
[White "Fernandez Guillen, Ernesto J."]
[Black "Poltorak, Sebastian"]
[WhiteFideId "3512428"]
[BlackFideId "1199498"]
[WhiteElo "2477"]
[BlackElo "2354"]
[Result "1-0"]
[Round "04"]
[TimeControl "180+2"]
[Date "2022.12.27"]
[WhiteClock "0:01:10"]
[BlackClock "0:00:16"]

1. e4 {[%clk 0:02:58]}  c6 {[%clk 0:02:59]} 2. d4 {[%clk 0:02:58]}  d5 {[%clk 0:03:00]} 3. e5 {[%clk 0:02:58]}  c5 {[%clk 0:02:59]} 4. dxc5 {[%clk 0:02:59]}  e6 {[%clk 0:03:00]} 5. a3 {[%clk 0:03:00]}  Bxc5 {[%clk 0:03:00]} 6. Qg4 {[%clk 0:02:59]}  Ne7 {[%clk 0:02:54]} 7. b4 {[%clk 0:02:52]}  h5 {[%clk 0:02:46]} 8. Qxg7 {[%clk 0:02:51]}  Rg8 {[%clk 0:02:45]} 9. Qh7 {[%clk 0:02:51]}  Bd4 {[%clk 0:02:44]} 10. c3 {[%clk 0:02:42]}  Bxe5 {[%clk 0:02:42]} 11. Nf3 {[%clk 0:02:42]}  Rh8 {[%clk 0:02:23]} 12. Qc2 {[%clk 0:02:41]}  Bf6 {[%clk 0:02:23]} 13. h4 {[%clk 0:02:41]}  Qc7 {[%clk 0:02:16]} 14. Bg5 {[%clk 0:02:39]}  Bxg5 {[%clk 0:02:07]} 15. hxg5 {[%clk 0:02:40]}  b6 {[%clk 0:02:03]} 16. Nbd2 {[%clk 0:02:35]}  Nd7 {[%clk 0:01:58]} 17. c4 {[%clk 0:02:27]}  Bb7 {[%clk 0:01:58]} 18. O-O-O {[%clk 0:02:25]}  O-O-O {[%clk 0:01:57]} 19. cxd5 {[%clk 0:02:22]}  Qxc2+ {[%clk 0:01:49]} 20. Kxc2 {[%clk 0:02:23]}  Nxd5 {[%clk 0:01:47]} 21. Rh4 {[%clk 0:02:21]}  Kb8 {[%clk 0:01:39]} 22. Nc4 {[%clk 0:02:20]}  Rc8 {[%clk 0:01:35]} 23. Kb3 {[%clk 0:02:20]}  Rc6 {[%clk 0:01:17]} 24. a4 {[%clk 0:02:09]}  a6 {[%clk 0:01:08]} 25. b5 {[%clk 0:02:01]}  axb5 {[%clk 0:01:08]} 26. axb5 {[%clk 0:02:02]}  Rc5 {[%clk 0:01:09]} 27. Nd6 {[%clk 0:02:02]}  Rh7 {[%clk 0:01:03]} 28. Bd3 {[%clk 0:01:59]}  Rg7 {[%clk 0:01:01]} 29. Rxh5 {[%clk 0:01:57]}  Rg8 {[%clk 0:00:43]} 30. Rh7 {[%clk 0:01:36]}  Kc7 {[%clk 0:00:32]} 31. Nxb7 {[%clk 0:01:33]}  Kxb7 {[%clk 0:00:32]} 32. Rxf7 {[%clk 0:01:34]}  Kc8 {[%clk 0:00:28]} 33. Bc4 {[%clk 0:01:32]}  Rh8 {[%clk 0:00:23]} 34. Ra1 {[%clk 0:01:29]}  Nb8 {[%clk 0:00:22]} 35. Raa7 {[%clk 0:01:15]}  Rd8 {[%clk 0:00:23]} 36. Nd4 {[%clk 0:01:12]}  e5 {[%clk 0:00:19]} 37. Ne6 {[%clk 0:01:11]}  Re8 {[%clk 0:00:20]} 38. Bxd5 {[%clk 0:01:11]}  Rxb5+ {[%clk 0:00:16]} 39. Kc4 {[%clk 0:01:11]}  Rc5+ {[%clk 0:00:17]} 40. Nxc5 {[%clk 0:01:10]}  bxc5 {[%clk 0:00:16]} 41. Kxc5 {[%clk 0:01:10]} 1-0


[Site "https://www.chess.com"]

[Event "Titled Tuesday Blitz December 27 Late 2022"]
[White "Fernandez, Maria Florencia"]
[Black "Moreno Perez, Tobias Sebastian"]
[WhiteFideId "116459"]
[BlackFideId "186716"]
[WhiteElo "2129"]
[BlackElo "2256"]
[Result "0-1"]
[Round "04"]
[TimeControl "180+2"]
[Date "2022.12.27"]
[WhiteClock "0:00:01"]
[BlackClock "0:00:18"]

1. d4 {[%clk 0:03:00]}  d5 {[%clk 0:02:58]} 2. c4 {[%clk 0:02:58]}  c6 {[%clk 0:02:56]} 3. Nc3 {[%clk 0:02:57]}  Nf6 {[%clk 0:02:54]} 4. Nf3 {[%clk 0:02:54]}  dxc4 {[%clk 0:02:54]} 5. a4 {[%clk 0:02:53]}  Bf5 {[%clk 0:02:53]} 6. e3 {[%clk 0:02:52]}  e6 {[%clk 0:02:53]} 7. Bxc4 {[%clk 0:02:52]}  Bb4 {[%clk 0:02:53]} 8. O-O {[%clk 0:02:53]}  O-O {[%clk 0:02:53]} 9. Nh4 {[%clk 0:02:44]}  Bg4 {[%clk 0:02:49]} 10. f3 {[%clk 0:02:29]}  Nd5 {[%clk 0:02:48]} 11. fxg4 {[%clk 0:02:08]}  Qxh4 {[%clk 0:02:47]} 12. Ne4 {[%clk 0:02:02]}  Nd7 {[%clk 0:02:34]} 13. Ng3 {[%clk 0:01:37]}  Qe7 {[%clk 0:02:22]} 14. e4 {[%clk 0:01:28]}  N5b6 {[%clk 0:02:21]} 15. Bb3 {[%clk 0:01:15]}  Rad8 {[%clk 0:02:19]} 16. Qf3 {[%clk 0:01:12]}  c5 {[%clk 0:02:09]} 17. a5 {[%clk 0:01:05]}  Nc8 {[%clk 0:02:04]} 18. d5 {[%clk 0:00:34]}  c4 {[%clk 0:02:03]} 19. Bc2 {[%clk 0:00:31]}  Ne5 {[%clk 0:02:02]} 20. Qf4 {[%clk 0:00:29]}  Ng6 {[%clk 0:01:51]} 21. Qf3 {[%clk 0:00:24]}  Bc5+ {[%clk 0:01:49]} 22. Kh1 {[%clk 0:00:23]}  Nd6 {[%clk 0:01:36]} 23. Nh5 {[%clk 0:00:20]}  Nb5 {[%clk 0:01:26]} 24. Qe2 {[%clk 0:00:16]}  exd5 {[%clk 0:01:22]} 25. e5 {[%clk 0:00:14]}  Nd4 {[%clk 0:01:21]} 26. Qd1 {[%clk 0:00:14]}  Nxc2 {[%clk 0:01:21]} 27. Qxc2 {[%clk 0:00:15]}  Qxe5 {[%clk 0:01:15]} 28. Bd2 {[%clk 0:00:13]}  Qe4 {[%clk 0:01:13]} 29. Qxe4 {[%clk 0:00:11]}  dxe4 {[%clk 0:01:14]} 30. Bc3 {[%clk 0:00:11]}  f6 {[%clk 0:01:12]} 31. Rae1 {[%clk 0:00:11]}  Rfe8 {[%clk 0:01:12]} 32. g5 {[%clk 0:00:08]}  Bd4 {[%clk 0:00:30]} 33. gxf6 {[%clk 0:00:08]}  Rf8 {[%clk 0:00:22]} 34. fxg7 {[%clk 0:00:05]}  Rxf1+ {[%clk 0:00:20]} 35. Rxf1 {[%clk 0:00:06]}  Bxc3 {[%clk 0:00:21]} 36. bxc3 {[%clk 0:00:07]}  e3 {[%clk 0:00:20]} 37. h3 {[%clk 0:00:04]}  e2 {[%clk 0:00:19]} 38. Rf8+ {[%clk 0:00:01]}  Nxf8 {[%clk 0:00:18]} 39. gxf8=Q+ {[%clk 0:00:01]}  Rxf8 {[%clk 0:00:18]} 0-1


[Site "https://www.chess.com"]

[Event "Titled Tuesday Blitz December 27 Late 2022"]
[White "Fiorito, Joaquin"]
[Black "Wieczorek, Oskar"]
[WhiteFideId "180173"]
[BlackFideId "1133950"]
[WhiteElo "2405"]
[BlackElo "2512"]
[Result "1/2-1/2"]
[Round "04"]
[TimeControl "180+2"]
[Date "2022.12.27"]
[WhiteClock "0:00:08"]
[BlackClock "0:00:47"]

1. d4 {[%clk 0:03:00]}  Nf6 {[%clk 0:02:59]} 2. Nc3 {[%clk 0:03:00]}  g6 {[%clk 0:02:56]} 3. e4 {[%clk 0:03:00]}  d6 {[%clk 0:02:57]} 4. Be3 {[%clk 0:03:00]}  Bg7 {[%clk 0:02:57]} 5. Qd2 {[%clk 0:03:00]}  c6 {[%clk 0:02:58]} 6. Bh6 {[%clk 0:03:00]}  Bxh6 {[%clk 0:02:58]} 7. Qxh6 {[%clk 0:03:00]}  b5 {[%clk 0:02:59]} 8. Bd3 {[%clk 0:03:00]}  Nbd7 {[%clk 0:02:58]} 9. Nf3 {[%clk 0:03:00]}  e5 {[%clk 0:02:59]} 10. O-O {[%clk 0:02:55]}  Qe7 {[%clk 0:02:59]} 11. dxe5 {[%clk 0:02:28]}  Nxe5 {[%clk 0:02:48]} 12. Nxe5 {[%clk 0:02:21]}  dxe5 {[%clk 0:02:47]} 13. h3 {[%clk 0:02:01]}  Be6 {[%clk 0:02:26]} 14. Ne2 {[%clk 0:01:55]}  Nd7 {[%clk 0:02:16]} 15. f4 {[%clk 0:01:37]}  Qf8 {[%clk 0:02:08]} 16. Qh4 {[%clk 0:01:32]}  exf4 {[%clk 0:02:02]} 17. Nxf4 {[%clk 0:01:31]}  Qc5+ {[%clk 0:02:02]} 18. Kh1 {[%clk 0:01:24]}  O-O {[%clk 0:01:59]} 19. Nxe6 {[%clk 0:01:22]}  fxe6 {[%clk 0:02:00]} 20. a4 {[%clk 0:00:51]}  a6 {[%clk 0:01:56]} 21. axb5 {[%clk 0:00:35]}  axb5 {[%clk 0:01:56]} 22. Rxa8 {[%clk 0:00:35]}  Rxa8 {[%clk 0:01:57]} 23. Qg4 {[%clk 0:00:33]}  Qe5 {[%clk 0:01:52]} 24. c3 {[%clk 0:00:25]}  Rf8 {[%clk 0:01:50]} 25. Rxf8+ {[%clk 0:00:23]}  Kxf8 {[%clk 0:01:40]} 26. Qh4 {[%clk 0:00:22]}  Nf6 {[%clk 0:01:41]} 27. Qf2 {[%clk 0:00:20]}  Ke7 {[%clk 0:01:32]} 28. Qe3 {[%clk 0:00:19]}  g5 {[%clk 0:01:25]} 29. Qa7+ {[%clk 0:00:19]}  Nd7 {[%clk 0:01:25]} 30. Qe3 {[%clk 0:00:19]}  Qf4 {[%clk 0:01:23]} 31. Qd4 {[%clk 0:00:18]}  Qc1+ {[%clk 0:01:08]} 32. Kh2 {[%clk 0:00:17]}  Qf4+ {[%clk 0:01:08]} 33. Kg1 {[%clk 0:00:18]}  Qe5 {[%clk 0:01:06]} 34. Qe3 {[%clk 0:00:16]}  Qc5 {[%clk 0:01:04]} 35. Kf2 {[%clk 0:00:16]}  Kf6 {[%clk 0:01:04]} 36. Ke2 {[%clk 0:00:13]}  Qxe3+ {[%clk 0:01:03]} 37. Kxe3 {[%clk 0:00:14]}  Ke5 {[%clk 0:01:03]} 38. g3 {[%clk 0:00:13]}  h6 {[%clk 0:01:01]} 39. b4 {[%clk 0:00:12]}  Nf6 {[%clk 0:00:59]} 40. Bc2 {[%clk 0:00:12]}  Nd7 {[%clk 0:00:57]} 41. Bd3 {[%clk 0:00:12]}  Nb6 {[%clk 0:00:58]} 42. Be2 {[%clk 0:00:08]}  Na4 {[%clk 0:00:57]} 43. Kd3 {[%clk 0:00:08]}  Nb2+ {[%clk 0:00:57]} 44. Ke3 {[%clk 0:00:09]}  Na4 {[%clk 0:00:47]} 45. Kd3 {[%clk 0:00:09]}  Nb6 {[%clk 0:00:46]} 46. Ke3 {[%clk 0:00:09]}  Nd7 {[%clk 0:00:47]} 47. Bd3 {[%clk 0:00:08]} 1/2-1/2


[Site "https://www.chess.com"]

[Event "Titled Tuesday Blitz December 27 Late 2022"]
[White "Forgacs, Attila Jr."]
[Black "Sailer, Mike"]
[WhiteFideId "773654"]
[BlackFideId "2012901"]
[WhiteElo "2264"]
[BlackElo "2109"]
[Result "0-1"]
[Round "04"]
[TimeControl "180+2"]
[Date "2022.12.27"]
[WhiteClock "0:00:46"]
[BlackClock "0:00:04"]

1. e4 {[%clk 0:03:00]}  d5 {[%clk 0:02:58]} 2. exd5 {[%clk 0:03:00]}  Qxd5 {[%clk 0:02:58]} 3. Nc3 {[%clk 0:03:01]}  Qd6 {[%clk 0:02:58]} 4. d4 {[%clk 0:03:01]}  Nf6 {[%clk 0:02:58]} 5. Nf3 {[%clk 0:03:02]}  c6 {[%clk 0:02:58]} 6. g3 {[%clk 0:03:02]}  Bf5 {[%clk 0:02:58]} 7. Bg2 {[%clk 0:03:02]}  e6 {[%clk 0:02:57]} 8. O-O {[%clk 0:03:02]}  Be7 {[%clk 0:02:56]} 9. Nh4 {[%clk 0:02:55]}  Bg4 {[%clk 0:02:55]} 10. f3 {[%clk 0:02:55]}  Bh5 {[%clk 0:02:55]} 11. Bf4 {[%clk 0:02:47]}  Qd8 {[%clk 0:02:55]} 12. g4 {[%clk 0:02:46]}  Bg6 {[%clk 0:02:55]} 13. Nxg6 {[%clk 0:02:46]}  hxg6 {[%clk 0:02:55]} 14. Bg3 {[%clk 0:02:43]}  Nbd7 {[%clk 0:02:48]} 15. Ne4 {[%clk 0:02:43]}  Nb6 {[%clk 0:02:43]} 16. c3 {[%clk 0:02:42]}  Nbd5 {[%clk 0:02:27]} 17. Nxf6+ {[%clk 0:02:38]}  gxf6 {[%clk 0:02:12]} 18. Qd3 {[%clk 0:02:38]}  f5 {[%clk 0:02:09]} 19. gxf5 {[%clk 0:02:35]}  gxf5 {[%clk 0:02:08]} 20. Rae1 {[%clk 0:02:30]}  Qd7 {[%clk 0:01:59]} 21. c4 {[%clk 0:02:23]}  Nf6 {[%clk 0:01:47]} 22. Be5 {[%clk 0:02:15]}  O-O-O {[%clk 0:01:42]} 23. f4 {[%clk 0:02:14]}  Rh6 {[%clk 0:01:24]} 24. a4 {[%clk 0:02:11]}  Rdh8 {[%clk 0:01:19]} 25. h3 {[%clk 0:02:11]}  Rg8 {[%clk 0:01:17]} 26. a5 {[%clk 0:02:05]}  Ne4 {[%clk 0:00:53]} 27. a6 {[%clk 0:01:41]}  b6 {[%clk 0:00:49]} 28. Rxe4 {[%clk 0:01:35]}  fxe4 {[%clk 0:00:45]} 29. Qxe4 {[%clk 0:01:36]}  Rxh3 {[%clk 0:00:39]} 30. d5 {[%clk 0:00:55]}  Rhg3 {[%clk 0:00:32]} 31. Rf2 {[%clk 0:00:46]}  exd5 {[%clk 0:00:21]} 32. cxd5 {[%clk 0:00:46]}  Bc5 {[%clk 0:00:14]} 33. dxc6 {[%clk 0:00:43]}  Rxg2+ {[%clk 0:00:10]} 34. Qxg2 {[%clk 0:00:40]}  Rxg2+ {[%clk 0:00:10]} 35. Kxg2 {[%clk 0:00:40]}  Qg4+ {[%clk 0:00:04]} 36. Kf1 {[%clk 0:00:40]}  Bxf2 {[%clk 0:00:04]} 37. Kxf2 {[%clk 0:00:41]}  Qe6 {[%clk 0:00:04]} 38. c7 {[%clk 0:00:42]}  Qb3 {[%clk 0:00:03]} 39. Ke2 {[%clk 0:00:40]}  Qb5+ {[%clk 0:00:04]} 40. Ke3 {[%clk 0:00:40]}  Qxa6 {[%clk 0:00:04]} 41. Ke4 {[%clk 0:00:41]}  Qc4+ {[%clk 0:00:04]} 42. Kf5 {[%clk 0:00:42]}  Qe6+ {[%clk 0:00:03]} 43. Ke4 {[%clk 0:00:42]}  b5 {[%clk 0:00:04]} 44. f5 {[%clk 0:00:43]}  Qc4+ {[%clk 0:00:04]} 45. Kf3 {[%clk 0:00:42]}  a5 {[%clk 0:00:04]} 46. Bd6 {[%clk 0:00:41]}  Qc6+ {[%clk 0:00:04]} 47. Kf4 {[%clk 0:00:41]}  Qxd6+ {[%clk 0:00:05]} 48. Kg5 {[%clk 0:00:42]}  Qxc7 {[%clk 0:00:05]} 49. Kf6 {[%clk 0:00:43]}  b4 {[%clk 0:00:05]} 50. b3 {[%clk 0:00:43]}  a4 {[%clk 0:00:05]} 51. Kg7 {[%clk 0:00:44]}  a3 {[%clk 0:00:05]} 52. Kf6 {[%clk 0:00:45]}  a2 {[%clk 0:00:06]} 53. Kg5 {[%clk 0:00:45]}  a1=Q {[%clk 0:00:06]} 54. Kh6 {[%clk 0:00:45]}  Qg1 {[%clk 0:00:04]} 55. Kh7 {[%clk 0:00:46]}  Qch2# {[%clk 0:00:04]} 0-1


[Site "https://www.chess.com"]